bitfinex/quotes_BTCUSD_20240921
["timestamp","ask_amount","ask_price","bid_price","bid_amount"]
[1726897235983,0.52794596,62963.0,62962.0,0.106289]
[1726897236212,0.40877641,62963.0,62962.0,0.106289]
[1726897236427,0.52794596,62963.0,62962.0,0.106289]
[1726897236648,0.40877641,62963.0,62962.0,0.106289]
[1726897236867,0.40874573,62963.0,62962.0,0.106289]
[1726897238193,0.52791528,62963.0,62962.0,0.106289]
[1726897241214,0.52991528,62963.0,62962.0,0.106289]
[1726897241437,0.41074573,62963.0,62962.0,0.106289]
[1726897242538,0.52991819,62963.0,62962.0,0.106289]
[1726897243459,0.41074573,62963.0,62962.0,0.106289]
[1726897252859,0.17789369,62963.0,62962.0,0.106289]
[1726897253303,0.41052436,62963.0,62962.0,0.106289]
[1726897253545,0.40852436,62963.0,62962.0,0.106289]
[1726897256941,0.41052436,62963.0,62962.0,0.106289]
[1726897257927,0.41051409,62963.0,62962.0,0.106289]
[1726897260998,0.40851409,62963.0,62962.0,0.106289]
[1726897262411,0.41051409,62963.0,62962.0,0.106289]
[1726897266571,0.40851409,62963.0,62962.0,0.106289]
[1726897266792,0.52925987,62963.0,62962.0,0.106289]
[1726897267010,0.52725987,62963.0,62962.0,0.106289]
[1726897267715,0.51960635,62963.0,62962.0,0.106289]
[1726897269996,0.52160635,62963.0,62962.0,0.106289]
[1726897271123,0.5213837,62963.0,62962.0,0.106289]
[1726897271855,0.5213837,62963.0,62962.0,0.014489]
[1726897272133,0.66434261,62963.0,62962.0,0.014489]
[1726897272348,0.5213837,62963.0,62962.0,0.014489]
[1726897273059,0.5193837,62963.0,62962.0,0.013489]
[1726897273345,0.5313837,62963.0,62962.0,0.014489]
[1726897273808,0.5193837,62963.0,62962.0,0.013489]
[1726897274285,0.5313837,62963.0,62962.0,0.014489]
[1726897274512,0.67429534,62963.0,62962.0,0.014489]
[1726897275193,0.6287837,62963.0,62962.0,0.014489]
[1726897275883,0.62957164,62963.0,62962.0,0.014489]
[1726897283154,0.78839464,62963.0,62962.0,0.014489]
[1726897283397,0.62957164,62963.0,62962.0,0.014489]
[1726897283639,0.78839464,62963.0,62962.0,0.014489]
[1726897284121,0.62957164,62963.0,62962.0,0.014489]
[1726897285306,0.78839464,62963.0,62962.0,0.014489]
[1726897285536,1.10604064,62963.0,62962.0,0.014489]
[1726897286214,1.43250061,62963.0,62962.0,0.014489]
[1726897286465,0.95603161,62963.0,62962.0,0.014489]
[1726897286696,0.62957164,62963.0,62962.0,0.014489]
[1726897287160,0.78839464,62963.0,62962.0,0.014489]
[1726897287401,1.11485461,62963.0,62962.0,0.014489]
[1726897290483,1.11417082,62963.0,62962.0,0.014489]
[1726897295184,1.11406204,62963.0,62962.0,0.014489]
[1726897297331,0.94861467,62963.0,62962.0,0.014489]
[1726897297789,0.002,62955.0,62954.0,0.23988705]
[1726897298013,0.28379945,62955.0,62954.0,0.23988705]
[1726897298380,0.28379945,62955.0,62954.0,0.00165]
[1726897299371,0.28379945,62955.0,62954.0,0.09835]
[1726897299581,0.51624908,62955.0,62954.0,0.09835]
[1726897300007,0.52824908,62955.0,62954.0,0.09935]
[1726897302039,0.29579945,62955.0,62954.0,0.09935]
[1726897309554,0.29379945,62955.0,62954.0,0.17995]
[1726897309785,0.17505367,62955.0,62954.0,0.17995]
[1726897310522,0.29379945,62955.0,62954.0,0.17995]
[1726897310974,0.52798636,62955.0,62954.0,0.17995]
[1726897311452,0.62313198,62955.0,62954.0,0.17995]
[1726897313307,0.5043862,62955.0,62954.0,0.17995]
[1726897313533,0.52798636,62955.0,62954.0,0.17995]
[1726897315419,0.64691838,62955.0,62954.0,0.17995]
[1726897316557,0.64714896,62955.0,62954.0,0.17995]
[1726897317467,0.52811596,62955.0,62954.0,0.17995]
[1726897318513,0.53011596,62955.0,62954.0,0.17995]
[1726897318717,0.52811596,62955.0,62954.0,0.17995]
[1726897324697,0.528297,62955.0,62954.0,0.17995]
[1726897329793,0.52828842,62955.0,62954.0,0.17995]
[1726897334816,0.40954264,62955.0,62954.0,0.17995]
[1726897335241,0.50512721,62955.0,62954.0,0.17995]
[1726897335473,0.2464961,62955.0,62954.0,0.17995]
[1726897336174,0.2344961,62955.0,62954.0,0.17895]
[1726897336410,0.16305367,62955.0,62954.0,0.17895]
[1726897336861,0.21067645,62955.0,62954.0,0.17895]
[1726897337071,0.2344961,62955.0,62954.0,0.17895]
[1726897337499,0.16305367,62955.0,62954.0,0.17895]
[1726897337712,0.17705367,62955.0,62954.0,0.17895]
[1726897338123,0.16305367,62955.0,62954.0,0.17895]
[1726897338551,0.17705367,62955.0,62954.0,0.17895]
[1726897339763,0.24847556,62955.0,62954.0,0.17895]
[1726897339986,0.17705367,62955.0,62954.0,0.17895]
[1726897340655,0.22466439,62955.0,62954.0,0.17895]
[1726897340898,0.17705367,62955.0,62954.0,0.17895]
[1726897341380,0.22466279,62955.0,62954.0,0.17895]
[1726897341596,0.24847556,62955.0,62954.0,0.17895]
[1726897342288,0.22466268,62955.0,62954.0,0.17895]
[1726897347425,0.17705367,62955.0,62954.0,0.17895]
[1726897347652,0.22466268,62955.0,62954.0,0.17895]
[1726897349454,0.17705367,62955.0,62954.0,0.17895]
[1726897349913,0.22466268,62955.0,62954.0,0.17895]
[1726897351528,0.17705367,62955.0,62954.0,0.17895]
[1726897351967,0.22466268,62955.0,62954.0,0.17895]
[1726897352391,0.17705367,62955.0,62954.0,0.17895]
[1726897352610,0.22466628,62955.0,62954.0,0.17895]
[1726897353558,0.17705367,62955.0,62954.0,0.17895]
[1726897353786,0.24847556,62955.0,62954.0,0.17895]
[1726897354019,0.17705367,62955.0,62954.0,0.17895]
[1726897355466,0.24847556,62955.0,62954.0,0.17895]
[1726897356426,0.2484946,62955.0,62954.0,0.17895]
[1726897357534,0.17705367,62955.0,62954.0,0.17895]
[1726897357771,0.2484944,62955.0,62954.0,0.17895]
[1726897360111,0.17705367,62955.0,62954.0,0.17895]
[1726897360324,0.24849482,62955.0,62954.0,0.17895]
[1726897360569,0.24849573,62955.0,62954.0,0.17895]
[1726897360809,0.24849551,62955.0,62954.0,0.17895]
[1726897361033,0.17705367,62955.0,62954.0,0.17895]
[1726897361251,0.24849585,62955.0,62954.0,0.17895]
[1726897361718,0.17705367,62955.0,62954.0,0.17895]
[1726897361970,0.24849651,62955.0,62954.0,0.17895]
[1726897362220,0.17705367,62955.0,62954.0,0.17895]
[1726897362437,0.24849689,62955.0,62954.0,0.17895]
[1726897362661,0.17705367,62955.0,62954.0,0.17895]
[1726897363327,0.24849775,62955.0,62954.0,0.17895]
[1726897363765,0.17705367,62955.0,62954.0,0.17895]
[1726897365111,0.24849957,62955.0,62954.0,0.17895]
[1726897365335,0.17705367,62955.0,62954.0,0.17895]
[1726897366075,0.41299812,62955.0,62954.0,0.17895]
[1726897366292,0.50825786,62955.0,62954.0,0.17895]
[1726897367181,0.41299812,62955.0,62954.0,0.17895]
[1726897367395,0.50826554,62955.0,62954.0,0.17895]
[1726897367859,0.50826707,62955.0,62954.0,0.17895]
[1726897368072,0.41299812,62955.0,62954.0,0.17895]
[1726897369014,0.53209214,62955.0,62954.0,0.17895]
[1726897369688,0.41499812,62955.0,62954.0,0.00165]
[1726897370159,0.55788773,62955.0,62954.0,0.00165]
[1726897370386,0.55791285,62955.0,62954.0,0.00165]
[1726897371530,0.41499812,62955.0,62954.0,0.00165]
[1726897371763,0.41299812,62955.0,62954.0,0.00165]
[1726897372696,0.41499812,62955.0,62954.0,0.00165]
[1726897375854,0.55791285,62955.0,62954.0,0.00165]
[1726897376075,0.41499812,62955.0,62954.0,0.00165]
[1726897376296,0.5317439,62955.0,62954.0,0.00165]
[1726897377882,0.5337439,62955.0,62954.0,0.00165]
[1726897378120,0.29779945,62955.0,62954.0,0.00165]
[1726897378351,0.53320314,62955.0,62954.0,0.00165]
[1726897381542,0.53123107,62955.0,62954.0,0.00165]
[1726897381981,0.53323107,62955.0,62954.0,0.00165]
[1726897385164,0.53123107,62955.0,62954.0,0.00165]
[1726897386603,0.53120922,62955.0,62954.0,0.00165]
[1726897390567,0.53320922,62955.0,62954.0,0.00165]
[1726897391529,0.53298685,62955.0,62954.0,0.00165]
[1726897394642,0.67583692,62955.0,62954.0,0.00165]
[1726897396166,0.29779945,62955.0,62954.0,0.00165]
[1726897396376,0.675715,62955.0,62954.0,0.00165]
[1726897400910,0.53287112,62955.0,62954.0,0.00165]
[1726897405994,0.53270175,62955.0,62954.0,0.00165]
[1726897410742,0.29779945,62955.0,62954.0,0.00165]
[1726897410992,0.53272987,62955.0,62954.0,0.00165]
[1726897413576,1.00925987,62955.0,62954.0,0.00165]
[1726897414553,0.99525987,62955.0,62954.0,0.00165]
[1726897414791,1.00925987,62955.0,62954.0,0.00165]
[1726897415027,1.16731613,62955.0,62954.0,0.00165]
[1726897415264,1.57411871,62955.0,62954.0,0.00165]
[1726897415772,1.57287158,62955.0,62954.0,0.00165]
[1726897416015,1.89055858,62955.0,62954.0,0.00165]
[1726897416502,1.90455858,62955.0,62954.0,0.00165]
[1726897417013,1.89055858,62955.0,62954.0,0.00165]
[1726897417486,1.90455858,62955.0,62954.0,0.00165]
[1726897417932,1.73250232,62955.0,62954.0,0.00165]
[1726897418182,1.74650232,62955.0,62954.0,0.00165]
[1726897421328,1.73250232,62955.0,62954.0,0.00165]
[1726897422795,1.74650232,62955.0,62954.0,0.00165]
[1726897425482,1.7460926,62955.0,62954.0,0.00165]
[1726897430157,1.4284056,62955.0,62954.0,0.00165]
[1726897431065,1.3365056,62955.0,62954.0,0.00165]
[1726897431534,1.00856951,62955.0,62954.0,0.00165]
[1726897432383,0.99456951,62955.0,62954.0,0.00165]
[1726897432590,1.00856951,62955.0,62954.0,0.00165]
[1726897432801,1.16923412,62955.0,62954.0,0.00165]
[1726897433440,1.00856951,62955.0,62954.0,0.00165]
[1726897433651,1.3365056,62955.0,62954.0,0.00165]
[1726897433870,1.16923412,62955.0,62954.0,0.00165]
[1726897434736,1.00856951,62955.0,62954.0,0.00165]
[1726897435129,1.49975227,62955.0,62954.0,0.00165]
[1726897435377,1.33907041,62955.0,62954.0,0.00165]
[1726897436169,1.00963818,62955.0,62954.0,0.00165]
[1726897448856,1.32732518,62955.0,62954.0,0.00165]
[1726897449065,0.160856,62950.0,62949.0,0.00165]
[1726897449306,0.5592184,62950.0,62949.0,0.00165]
[1726897449737,0.4003624,62950.0,62949.0,0.00165]
[1726897450417,0.4143624,62950.0,62949.0,0.00165]
[1726897452206,0.5732184,62950.0,62949.0,0.00165]
[1726897453265,0.57300761,62950.0,62949.0,0.00165]
[1726897453684,0.59029232,62950.0,62949.0,0.00165]
[1726897458278,1.22571632,62950.0,62949.0,0.00165]
[1726897458485,1.23714144,62950.0,62949.0,0.00165]
[1726897458692,0.478575,62949.0,62948.0,0.00165]
[1726897458904,1.20586373,62949.0,62948.0,0.00165]
[1726897459765,1.2307576,62949.0,62948.0,0.00165]
[1726897460212,0.9130406,62949.0,62948.0,0.00165]
[1726897460422,0.58390348,62949.0,62948.0,0.00165]
[1726897461245,0.59790348,62949.0,62948.0,0.00165]
[1726897463918,0.43904548,62949.0,62948.0,0.00165]
[1726897464137,0.43904548,62949.0,62948.0,0.09645]
[1726897464351,0.70459925,62949.0,62948.0,0.09645]
[1726897464560,0.55779126,62949.0,62948.0,0.09645]
[1726897465422,0.71859782,62949.0,62948.0,0.09645]
[1726897465557,0.55779126,62949.0,62948.0,0.09645]
[1726897466222,0.71860035,62949.0,62948.0,0.09645]
[1726897466606,0.55779126,62949.0,62948.0,0.09645]
[1726897466803,0.71859866,62949.0,62948.0,0.09645]
[1726897467555,0.55779126,62949.0,62948.0,0.09645]
[1726897467768,0.71859779,62949.0,62948.0,0.09645]
[1726897468363,0.55779126,62949.0,62948.0,0.09645]
[1726897472549,0.55877842,62949.0,62948.0,0.09645]
[1726897477407,0.32269332,62949.0,62948.0,0.09645]
[1726897477605,0.55871972,62949.0,62948.0,0.09645]
[1726897478269,0.55954472,62949.0,62948.0,0.09645]
[1726897482569,0.55954872,62949.0,62948.0,0.09645]
[1726897484474,0.71840672,62949.0,62948.0,0.09645]
[1726897487456,0.71845563,62949.0,62948.0,0.09645]
[1726897489882,0.55959763,62949.0,62948.0,0.09645]
[1726897492521,0.55965705,62949.0,62948.0,0.09645]
[1726897497248,0.5597015,62949.0,62948.0,0.09645]
[1726897501207,0.56086526,62949.0,62948.0,0.09645]
[1726897505422,0.41722561,62949.0,62948.0,0.09645]
[1726897505641,0.53597139,62949.0,62948.0,0.09645]
[1726897506135,0.53397139,62949.0,62948.0,0.09645]
[1726897506615,0.51997139,62949.0,62948.0,0.09645]
[1726897506846,0.5355498,62949.0,62948.0,0.09645]
[1726897507501,0.5215498,62949.0,62948.0,0.09645]
[1726897507722,0.5355498,62949.0,62948.0,0.09645]
[1726897508851,0.5335498,62949.0,62948.0,0.09645]
[1726897510345,0.41274882,62949.0,62948.0,0.09645]
[1726897510529,0.5314946,62949.0,62948.0,0.17285]
[1726897510768,0.67444039,62949.0,62948.0,0.17285]
[1726897514025,0.5314946,62949.0,62948.0,0.17285]
[1726897515385,0.53257099,62949.0,62948.0,0.17285]
[1726897520182,0.53257084,62949.0,62948.0,0.17285]
[1726897523722,0.51857084,62949.0,62948.0,0.17285]
[1726897523938,0.39982506,62949.0,62948.0,0.17285]
[1726897524174,0.53284987,62949.0,62948.0,0.17285]
[1726897525301,0.51884987,62949.0,62948.0,0.17285]
[1726897525505,0.39982506,62949.0,62948.0,0.17285]
[1726897525728,0.25119298,62949.0,62948.0,0.17285]
[1726897525979,0.014825,62949.0,62948.0,0.17285]
[1726897526166,0.000825,62949.0,62948.0,0.17285]
[1726897526423,0.000825,62949.0,62948.0,0.17602689]
[1726897526651,0.014825,62949.0,62948.0,0.17602689]
[1726897527090,0.000825,62949.0,62948.0,0.17602689]
[1726897527321,0.013825,62949.0,62948.0,0.17602689]
[1726897532135,0.000825,62954.0,62948.0,0.27602689]
[1726897532382,0.000825,62954.0,62950.0,0.11874578]
[1726897532596,0.000825,62954.0,62952.0,0.1747]
[1726897532817,0.000825,62954.0,62951.0,0.1747]
[1726897533487,0.014825,62954.0,62951.0,0.1747]
[1726897533929,0.014825,62954.0,62951.0,0.1736]
[1726897534183,0.014825,62954.0,62952.0,0.1736]
[1726897534386,0.014825,62954.0,62951.0,0.1736]
[1726897534615,0.014825,62954.0,62952.0,0.1736]
[1726897534837,0.014825,62954.0,62953.0,0.097]
[1726897534838,0.000825,62954.0,62953.0,0.097]
[1726897535076,0.007825,62954.0,62953.0,0.1736]
[1726897535719,0.000825,62954.0,62953.0,0.1736]
[1726897535940,0.001825,62954.0,62953.0,0.1736]
[1726897536514,0.000825,62954.0,62953.0,0.1736]
[1726897536768,0.001825,62954.0,62953.0,0.1736]
[1726897540435,0.001825,62954.0,62953.0,0.19120802]
[1726897548377,0.001825,62954.0,62953.0,0.1736]
[1726897550807,0.12057078,62954.0,62953.0,0.1736]
[1726897551723,0.001825,62954.0,62953.0,0.1736]
[1726897570450,0.04930897,62954.0,62953.0,0.1736]
[1726897570674,0.23610462,62954.0,62949.0,0.00165]
[1726897570919,0.11874578,62950.0,62949.0,0.00165]
[1726897571585,0.28179945,62950.0,62949.0,0.00165]
[1726897571802,0.28379945,62950.0,62949.0,0.00165]
[1726897572443,0.33141897,62950.0,62949.0,0.00165]
[1726897572649,0.28379945,62950.0,62949.0,0.00165]
[1726897573107,0.28379945,62950.0,62949.0,0.00265]
[1726897573108,0.28179945,62950.0,62949.0,0.00265]
[1726897573544,0.16305367,62950.0,62949.0,0.00165]
[1726897573751,0.21267464,62950.0,62949.0,0.00165]
[1726897574442,0.21067325,62950.0,62949.0,0.00165]
[1726897574665,0.16805367,62950.0,62949.0,0.00165]
[1726897576107,0.05262099,62950.0,62949.0,0.09255]
[1726897576936,0.005,62950.0,62949.0,0.09255]
[1726897585575,0.05262099,62950.0,62949.0,0.09255]
[1726897586619,0.05262327,62950.0,62949.0,0.09255]
[1726897588485,0.21567694,62950.0,62949.0,0.00165]
[1726897588688,0.52471792,62950.0,62949.0,0.00165]
[1726897588907,0.40565975,62950.0,62949.0,0.00165]
[1726897590120,0.40565975,62950.0,62949.0,0.460853]
[1726897591254,0.40537548,62950.0,62949.0,0.460853]
[1726897592389,0.40737548,62950.0,62949.0,0.460853]
[1726897592631,0.40537548,62950.0,62949.0,0.460853]
[1726897597433,0.40620048,62950.0,62949.0,0.460853]
[1726897600326,0.52518377,62950.0,62949.0,0.460853]
[1726897600541,0.40620048,62950.0,62949.0,0.460853]
[1726897603386,0.5246717,62950.0,62949.0,0.460853]
[1726897605180,0.5266717,62950.0,62949.0,0.460853]
[1726897610846,0.52656973,62950.0,62949.0,0.460853]
[1726897611401,0.52456973,62950.0,62949.0,0.460853]
[1726897612720,0.64353585,62950.0,62949.0,0.460853]
[1726897613369,0.52456973,62950.0,62949.0,0.460853]
[1726897613847,0.6435411,62950.0,62949.0,0.460853]
[1726897614523,0.52456973,62950.0,62949.0,0.460853]
[1726897614753,0.64354741,62950.0,62949.0,0.460853]
[1726897614987,0.52456973,62950.0,62949.0,0.460853]
[1726897615938,0.52470556,62950.0,62949.0,0.460853]
[1726897621173,0.52670556,62950.0,62949.0,0.460853]
[1726897621629,0.66948786,62950.0,62949.0,0.460853]
[1726897621845,0.52670556,62950.0,62949.0,0.460853]
[1726897622515,0.52170556,62950.0,62949.0,0.460853]
[1726897622746,0.52970556,62950.0,62949.0,0.461853]
[1726897623172,0.52970556,62950.0,62949.0,0.460853]
[1726897623173,0.52170556,62950.0,62949.0,0.460853]
[1726897624749,0.53570556,62950.0,62949.0,0.460853]
[1726897629524,0.69633564,62950.0,62949.0,0.460853]
[1726897629737,0.53570556,62950.0,62949.0,0.460853]
[1726897634059,0.53784497,62950.0,62949.0,0.460853]
[1726897638672,0.29862445,62950.0,62949.0,0.460853]
[1726897638907,0.69867766,62950.0,62949.0,0.460853]
[1726897639262,0.53793502,62950.0,62949.0,0.460853]
[1726897643580,0.29862445,62950.0,62949.0,0.460853]
[1726897643781,0.53790829,62950.0,62949.0,0.460853]
[1726897648641,0.53793199,62950.0,62949.0,0.460853]
[1726897651620,0.53793199,62950.0,62949.0,0.556653]
[1726897653366,0.53790566,62950.0,62949.0,0.556653]
[1726897654671,0.69867479,62950.0,62949.0,0.556653]
[1726897654684,0.53790566,62950.0,62949.0,0.556653]
[1726897654882,0.69867479,62950.0,62949.0,0.556653]
[1726897655029,0.53790566,62950.0,62949.0,0.556653]
[1726897655656,0.69867479,62950.0,62949.0,0.556653]
[1726897656507,0.53790566,62950.0,62949.0,0.556653]
[1726897658392,0.53798762,62950.0,62949.0,0.556653]
[1726897659001,0.69877612,62950.0,62949.0,0.556653]
[1726897659306,0.53798762,62950.0,62949.0,0.556653]
[1726897659969,0.69877612,62950.0,62949.0,0.556653]
[1726897660172,0.53798762,62950.0,62949.0,0.556653]
[1726897660387,0.69877612,62950.0,62949.0,0.572983]
[1726897661504,0.53798762,62950.0,62949.0,0.572983]
[1726897661924,0.69882207,62950.0,62949.0,0.572983]
[1726897662622,0.69883717,62950.0,62949.0,0.572983]
[1726897663253,0.53798762,62950.0,62949.0,0.572983]
[1726897663756,0.53806749,62950.0,62949.0,0.572983]
[1726897664190,0.69893071,62950.0,62949.0,0.572983]
[1726897665355,0.53806749,62950.0,62949.0,0.572983]
[1726897667454,0.69897746,62950.0,62949.0,0.572983]
[1726897667685,0.53806749,62950.0,62949.0,0.572983]
[1726897668171,0.53819566,62950.0,62949.0,0.572983]
[1726897669547,0.53819566,62950.0,62949.0,0.477183]
[1726897690863,0.41944988,62950.0,62949.0,0.477183]
[1726897691114,0.41944988,62950.0,62949.0,0.568083]
[1726897691115,0.53808568,62950.0,62949.0,0.568083]
[1726897691359,0.53608568,62950.0,62949.0,0.568083]
[1726897691997,0.53808568,62950.0,62949.0,0.568083]
[1726897695735,0.4173399,62950.0,62949.0,0.568083]
[1726897695953,0.53608568,62950.0,62949.0,0.568083]
[1726897701127,0.67902573,62950.0,62949.0,0.568083]
[1726897701334,0.53608568,62950.0,62949.0,0.568083]
[1726897701972,0.4173399,62950.0,62949.0,0.568083]
[1726897705405,0.4176801,62950.0,62949.0,0.568083]
[1726897705837,0.53674269,62950.0,62949.0,0.568083]
[1726897707322,0.4176801,62950.0,62949.0,0.568083]
[1726897709168,0.51288651,62950.0,62949.0,0.568083]
[1726897713206,0.4176801,62950.0,62949.0,0.568083]
[1726897713604,0.51285646,62950.0,62949.0,0.568083]
[1726897714054,0.4176801,62950.0,62949.0,0.568083]
[1726897714522,0.17787867,62950.0,62949.0,0.568083]
[1726897714780,0.24925529,62950.0,62949.0,0.568083]
[1726897715428,0.22545792,62950.0,62949.0,0.568083]
[1726897715933,0.17787867,62950.0,62949.0,0.568083]
[1726897720984,0.014825,62950.0,62949.0,0.568083]
[1726897723000,0.014825,62950.0,62949.0,0.649183]
[1726897723718,0.000825,62950.0,62949.0,0.649183]
[1726897724156,0.012825,62950.0,62949.0,0.650183]
[1726897724588,0.000825,62950.0,62949.0,0.649183]
[1726897724821,0.009825,62950.0,62949.0,0.650183]
[1726897746266,0.05740929,62950.0,62949.0,0.650183]
[1726897747626,0.05743841,62950.0,62949.0,0.650183]
[1726897748082,0.009825,62950.0,62949.0,0.650183]
[1726897748338,0.05743841,62950.0,62949.0,0.650183]
[1726897748551,0.009825,62950.0,62949.0,0.650183]
[1726897749273,0.05743841,62950.0,62949.0,0.650183]
[1726897751834,0.009825,62950.0,62949.0,0.650183]
[1726897752056,0.05745637,62950.0,62949.0,0.650183]
[1726897752314,0.009825,62950.0,62949.0,0.650183]
[1726897752522,0.05745814,62950.0,62949.0,0.650183]
[1726897753475,0.009825,62950.0,62949.0,0.650183]
[1726897755681,0.05746513,62950.0,62949.0,0.650183]
[1726897756616,0.009825,62950.0,62949.0,0.650183]
[1726897757524,0.0574693,62950.0,62949.0,0.650183]
[1726897757967,0.009825,62950.0,62949.0,0.650183]
[1726897759799,0.0574693,62950.0,62949.0,0.650183]
[1726897760041,0.009825,62950.0,62949.0,0.650183]
[1726897760292,0.0574693,62950.0,62949.0,0.650183]
[1726897760523,0.009825,62950.0,62949.0,0.650183]
[1726897761275,0.10511361,62950.0,62949.0,0.650183]
[1726897761512,0.009825,62950.0,62949.0,0.650183]
[1726897762413,0.34563852,62950.0,62949.0,0.650183]
[1726897762643,0.25034991,62950.0,62949.0,0.650183]
[1726897763310,0.34563852,62950.0,62949.0,0.650183]
[1726897764005,0.25034991,62950.0,62949.0,0.650183]
[1726897764216,0.009825,62950.0,62949.0,0.650183]
[1726897764428,0.25008939,62950.0,62949.0,0.650183]
[1726897765352,0.009825,62950.0,62949.0,0.650183]
[1726897766251,0.25014118,62950.0,62949.0,0.650183]
[1726897766475,0.009825,62950.0,62949.0,0.650183]
[1726897766720,0.25014114,62950.0,62949.0,0.650183]
[1726897767420,0.34542975,62950.0,62949.0,0.650183]
[1726897767650,0.25014114,62950.0,62949.0,0.650183]
[1726897771830,0.009825,62950.0,62949.0,0.650183]
[1726897772047,0.2501446,62950.0,62949.0,0.650183]
[1726897774211,0.08132873,62950.0,62949.0,0.66678898]
[1726897777614,0.009825,62950.0,62949.0,0.66678898]
[1726897778109,0.25015359,62950.0,62949.0,0.650183]
[1726897778323,0.009825,62950.0,62949.0,0.66678066]
[1726897778536,0.25016871,62950.0,62949.0,0.66678077]
[1726897778755,0.25016871,62950.0,62949.0,0.650183]
[1726897778964,0.009825,62950.0,62949.0,0.66678722]
[1726897779395,0.009825,62950.0,62949.0,0.650183]
[1726897780034,0.10516322,62950.0,62949.0,0.650183]
[1726897780251,0.009825,62950.0,62949.0,0.650183]
[1726897780492,0.009825,62950.0,62949.0,0.66678653]
[1726897780948,0.10516322,62950.0,62949.0,0.650183]
[1726897781594,0.3455159,62950.0,62949.0,0.650183]
[1726897783533,0.25017768,62950.0,62949.0,0.650183]
[1726897783978,0.34550838,62950.0,62949.0,0.650183]
[1726897784448,0.25017081,62950.0,62949.0,0.650183]
[1726897784945,0.34550838,62950.0,62949.0,0.650183]
[1726897785417,0.25017081,62950.0,62949.0,0.650183]
[1726897785637,0.34550838,62950.0,62949.0,0.650183]
[1726897786548,0.62730783,62950.0,62949.0,0.478183]
[1726897786779,0.53197026,62950.0,62949.0,0.478183]
[1726897793311,0.65107922,62950.0,62949.0,0.478183]
[1726897793743,0.53197026,62950.0,62949.0,0.478183]
[1726897793944,0.65107993,62950.0,62949.0,0.478183]
[1726897794373,0.53197026,62950.0,62949.0,0.478183]
[1726897794571,0.65107611,62950.0,62949.0,0.478183]
[1726897795407,0.65107294,62950.0,62949.0,0.478183]
[1726897795832,0.53197026,62950.0,62949.0,0.478183]
[1726897796290,0.65106733,62950.0,62949.0,0.478183]
[1726897801507,0.53232155,62950.0,62949.0,0.478183]
[1726897801952,0.41322448,62950.0,62949.0,0.478183]
[1726897802182,0.53232155,62950.0,62949.0,0.478183]
[1726897806099,0.41322448,62950.0,62949.0,0.478183]
[1726897806322,0.53231416,62950.0,62949.0,0.478183]
[1726897806563,0.41322448,62950.0,62949.0,0.478183]
[1726897807008,0.53231392,62950.0,62949.0,0.478183]
[1726897807233,0.53231234,62950.0,62949.0,0.478183]
[1726897807659,0.41322448,62950.0,62949.0,0.478183]
[1726897807884,0.53230997,62950.0,62949.0,0.478183]
[1726897808519,0.41322448,62950.0,62949.0,0.478183]
[1726897808757,0.53231046,62950.0,62949.0,0.478183]
[1726897808983,0.53231143,62950.0,62949.0,0.478183]
[1726897809405,0.53165387,62950.0,62949.0,0.478183]
[1726897810740,0.24951454,62950.0,62949.0,0.658083]
[1726897810976,0.009825,62950.0,62949.0,0.658083]
[1726897814957,0.009825,62950.0,62949.0,0.67537687]
[1726897827899,0.009825,62950.0,62949.0,0.658083]
[1726897840287,0.05742934,62950.0,62949.0,0.658083]
[1726897841691,0.05742934,62950.0,62949.0,0.559683]
[1726897842782,0.05742934,62950.0,62949.0,0.478183]
[1726897842994,0.009825,62950.0,62949.0,0.478183]
[1726897843892,0.38792445,62950.0,62949.0,0.478183]
[1726897844122,0.62757768,62950.0,62949.0,0.478183]
[1726897844361,0.74658854,62950.0,62949.0,0.478183]
[1726897844861,0.65028854,62950.0,62949.0,0.478183]
[1726897848775,0.53127768,62950.0,62949.0,0.478183]
[1726897849681,0.53088454,62950.0,62949.0,0.478183]
[1726897853392,0.53084643,62950.0,62949.0,0.478183]
[1726897854091,0.53284643,62950.0,62949.0,0.478183]
[1726897854309,0.53084643,62950.0,62949.0,0.478183]
[1726897854954,0.67367342,62950.0,62949.0,0.478183]
[1726897855859,0.41210065,62950.0,62949.0,0.478183]
[1726897856349,0.52184643,62950.0,62949.0,0.477183]
[1726897856569,0.53484643,62950.0,62949.0,0.477183]
[1726897857050,0.52184643,62950.0,62949.0,0.477183]
[1726897857557,0.53584643,62950.0,62949.0,0.477183]
[1726897862048,0.65481675,62950.0,62949.0,0.477183]
[1726897862729,0.53584643,62950.0,62949.0,0.477183]
[1726897862949,0.53606851,62950.0,62949.0,0.569683]
[1726897863169,0.41710065,62950.0,62949.0,0.569683]
[1726897863407,0.53584643,62950.0,62949.0,0.569683]
[1726897863884,0.63102066,62950.0,62949.0,0.569683]
[1726897864130,0.53584643,62950.0,62949.0,0.569683]
[1726897864586,0.63102222,62950.0,62949.0,0.569683]
[1726897865312,0.53584643,62950.0,62949.0,0.569683]
[1726897866009,0.65481429,62950.0,62949.0,0.569683]
[1726897866501,0.65481429,62950.0,62949.0,0.477183]
[1726897866746,0.53584643,62950.0,62949.0,0.477183]
[1726897871393,0.53682517,62950.0,62949.0,0.477183]
[1726897871617,0.62802517,62950.0,62949.0,0.477183]
[1726897871854,0.63002517,62950.0,62949.0,0.477183]
[1726897873756,0.62802517,62950.0,62949.0,0.477183]
[1726897874674,0.63002517,62950.0,62949.0,0.477183]
[1726897875115,0.63002517,62950.0,62949.0,0.47643565]
[1726897876310,0.62927614,62950.0,62949.0,0.47643565]
[1726897881189,0.62912397,62950.0,62949.0,0.47643565]
[1726897881403,0.78976044,62950.0,62949.0,0.47643565]
[1726897881629,0.62912397,62950.0,62949.0,0.47643565]
[1726897882083,0.53792397,62950.0,62949.0,0.47643565]
[1726897885781,0.29862445,62950.0,62949.0,0.47643565]
[1726897886034,0.53781099,62950.0,62949.0,0.47643565]
[1726897887643,0.53581099,62950.0,62949.0,0.47643565]
[1726897891237,0.53781099,62950.0,62949.0,0.47643565]
[1726897894843,0.53581099,62950.0,62949.0,0.47643565]
[1726897895871,0.53820976,62950.0,62949.0,0.47643565]
[1726897897494,0.41746398,62950.0,62949.0,0.47643565]
[1726897897733,0.41746398,62950.0,62949.0,0.56843565]